bitfinex/quotes_SOLUSD_20251019
["timestamp","ask_amount","ask_price","bid_price","bid_amount"]
[1760896518288,2.29820746,190.42,190.41,0.68]
[1760896519203,7.54975666,190.42,190.41,37.92]
[1760896520603,7.54975666,190.42,190.41,37.24]
[1760896522813,8.84364575,190.42,190.41,37.24]
[1760896524521,8.84364575,190.42,190.41,37.92]
[1760896527515,8.84364575,190.42,190.41,99.72]
[1760896529012,8.84364575,190.42,190.41,99.04]
[1760896531722,5.2512845,190.43,190.41,99.04]
[1760896531937,6.70331186,190.46,190.42,0.68]
[1760896532106,3.59209655,190.45,190.43,37.22]
[1760896532418,6.70331186,190.46,190.44,0.68]
[1760896532731,22.88,190.43,190.37,0.68]
[1760896532900,17.53886536,190.45,190.38,37.9]
[1760896533098,3.59209655,190.44,190.39,37.9]
[1760896533303,3.59209655,190.44,190.4,0.68]
[1760896533613,5.25127343,190.43,190.4,0.68]
[1760896534728,3.59209655,190.42,190.41,37.9]
[1760896535023,3.59209655,190.42,190.41,37.22]
[1760896535724,26.47209655,190.42,190.41,37.22]
[1760896536717,5.251825,190.41,190.38,62.48]
[1760896536906,3.59209655,190.39,190.38,0.68]
[1760896537129,3.59209655,190.39,190.38,37.9]
[1760896538539,3.59209655,190.39,190.38,37.22]
[1760896538711,8.84447325,190.39,190.38,37.9]
[1760896542327,8.84447325,190.39,190.38,99.7]
[1760896543427,3.59209655,190.39,190.38,99.7]
[1760896546133,3.59209655,190.39,190.38,99.02]
[1760896546432,8.84447325,190.39,190.38,99.69]
[1760896546932,8.84447325,190.39,190.38,99.02]
[1760896547152,8.84447325,190.39,190.38,99.69]
[1760896548122,3.59209655,190.39,190.38,99.69]
[1760896550038,3.59209655,190.41,190.38,99.69]
[1760896550329,3.59209655,190.41,190.39,0.67]
[1760896550533,3.59209655,190.41,190.4,37.22]
[1760896552339,8.84392155,190.41,190.4,37.22]
[1760896552839,9.49392155,190.41,190.38,61.8]
[1760896553014,5.251825,190.41,190.39,37.22]
[1760896553625,5.251825,190.41,190.4,0.67]
[1760896553841,5.251825,190.41,190.39,37.22]
[1760896554043,5.251825,190.41,190.4,61.8]
[1760896554231,8.84392155,190.41,190.4,61.8]
[1760896557142,8.84392155,190.41,190.4,62.47]
[1760896557337,8.84392155,190.41,190.4,61.8]
[1760896559039,8.84392155,190.41,190.4,62.47]
[1760896560528,9.49392155,190.41,190.4,61.8]
[1760896560731,9.49392155,190.41,190.4,99.0]
[1760896562041,9.49392155,190.41,190.4,61.8]
[1760896562249,32.37392155,190.41,190.4,61.8]
[1760896563431,35.9660181,190.41,190.4,61.8]
[1760896563948,22.88,190.38,190.37,37.2]
[1760896564244,27.12209655,190.38,190.35,99.0]
[1760896564434,3.59209655,190.36,190.35,99.0]
[1760896564838,8.845301,190.36,190.35,61.8]
[1760896565149,3.59209655,190.36,190.35,62.47]
[1760896566243,3.59209655,190.36,190.35,61.8]
[1760896566747,8.845301,190.36,190.35,61.8]
[1760896567959,3.59209655,190.36,190.35,62.47]
[1760896568160,3.59209655,190.36,190.35,61.8]
[1760896569046,8.845301,190.36,190.35,61.8]
[1760896569253,8.845301,190.36,190.35,62.47]
[1760896579662,8.845301,190.36,190.35,61.8]
[1760896579842,8.845301,190.36,190.35,62.47]
[1760896584675,7.55362629,190.36,190.35,62.47]
[1760896590051,8.20362629,190.36,190.34,37.2]
[1760896590262,22.88,190.33,190.3,62.47]
[1760896590454,2.30042184,190.31,190.3,62.47]
[1760896590773,2.30042184,190.31,190.3,99.65]
[1760896590970,2.30042184,190.31,190.3,37.85]
[1760896592368,10.5054283,190.31,190.27,0.67]
[1760896592562,2.30042184,190.28,190.27,0.67]
[1760896592877,2.30042184,190.28,190.25,0.67]
[1760896593173,2.30042184,190.26,190.25,37.85]
[1760896593373,2.30042184,190.26,190.25,37.18]
[1760896593678,2.30042184,190.26,190.25,0.67]
[1760896594458,2.30042184,190.26,190.23,37.85]
[1760896594459,7.55638736,190.26,190.23,37.85]
[1760896594686,2.30042184,190.24,190.23,37.85]
[1760896595370,22.88,190.29,190.23,43.10672855]
[1760896595684,2.30042184,190.28,190.24,0.67]
[1760896595889,2.30042184,190.25,190.24,37.85]
[1760896598657,2.30042184,190.27,190.24,99.65]
[1760896598861,2.30042184,190.27,190.25,0.67]
[1760896599370,0.65,190.32,190.25,0.67]
[1760896599371,2.74707599,190.33,190.26,37.18]
[1760896599685,2.30042184,190.3,190.27,0.67]
[1760896599873,25.18042184,190.3,190.27,0.67]
[1760896600181,2.30042184,190.31,190.28,37.18]
[1760896600479,2.30042184,190.31,190.29,0.67]
[1760896600773,2.30042184,190.31,190.3,0.67]
[1760896602371,7.55500646,190.31,190.29,0.67]
[1760896603089,7.55500646,190.31,190.28,98.98]
[1760896603293,2.30042184,190.29,190.28,99.65]
[1760896620404,31.13555873,190.29,190.23,0.67]
[1760896620582,2.30042184,190.24,190.23,0.67]
[1760896623499,2.30042184,190.24,190.22,37.26]
[1760896624003,7.55697193,190.24,190.22,37.26]
[1760896624380,8.25697193,190.24,190.22,37.26]
[1760896624702,0.7,190.23,190.22,0.1]
[1760896624902,7.55697193,190.24,190.22,0.1]
[1760896625100,8.25697193,190.24,190.22,0.1]
[1760896625402,2.30042184,190.23,190.22,0.1]
[1760896625906,7.55721624,190.23,190.22,0.1]
[1760896627009,8.25721624,190.23,190.22,0.1]
[1760896627203,7.55721624,190.23,190.22,0.1]
[1760896627711,8.25721624,190.23,190.22,0.1]
[1760896628008,7.55721624,190.23,190.22,0.1]
[1760896630111,7.55721624,190.23,190.22,61.9]
[1760896633515,22.88,190.23,190.22,62.59]
[1760896633715,0.68,190.33,190.22,64.89042184]
[1760896633906,16.12111536,190.33,190.24,2.30042184]
[1760896634211,16.12111536,190.33,190.25,0.72]
[1760896634212,2.98042184,190.33,190.25,0.72]
[1760896634393,2.98042184,190.33,190.26,37.14]
[1760896634600,18.38814751,190.34,190.27,0.72]
[1760896634798,22.88,190.31,190.27,0.72]
[1760896635303,2.30042184,190.33,190.27,62.52]
[1760896635509,5.25430853,190.32,190.28,0.72]
[1760896635816,28.13430853,190.32,190.29,37.86]
[1760896640722,2.30042184,190.31,190.29,37.14]
[1760896640919,0.67,190.31,190.29,37.14]
[1760896641123,2.30042184,190.3,190.27,61.8]
[1760896641322,2.30042184,190.3,190.28,0.72]
[1760896641823,2.30042184,190.3,190.28,62.52]
[1760896642298,2.30042184,190.3,190.29,0.72]
[1760896642707,2.30042184,190.3,190.28,61.8]
[1760896643010,2.30042184,190.3,190.28,62.52]
[1760896644232,2.30042184,190.29,190.28,61.8]
[1760896645211,2.30042184,190.29,190.28,62.52]
[1760896646398,2.30042184,190.3,190.28,62.52]
[1760896646604,2.30042184,190.29,190.28,62.52]
[1760896646837,3.59601228,190.29,190.28,62.52]
[1760896647135,3.59601228,190.29,190.28,99.64]
[1760896647826,3.59601228,190.3,190.28,99.64]
[1760896648023,3.59601228,190.3,190.29,0.72]
[1760896648625,3.59601228,190.3,190.28,37.12]
[1760896648825,3.59601228,190.29,190.28,37.12]
[1760896650710,8.85114917,190.29,190.28,37.12]
[1760896651110,8.85114917,190.29,190.26,37.12]
[1760896651111,9.52114917,190.29,190.26,37.12]
[1760896651308,3.59601228,190.27,190.26,37.12]
[1760896652530,3.59601228,190.27,190.26,37.84]
[1760896654010,3.59601228,190.28,190.26,37.84]
[1760896654234,3.59601228,190.28,190.27,0.72]
[1760896656132,3.59601228,190.28,190.26,37.12]
[1760896656322,3.59601228,190.27,190.26,37.84]
[1760896656649,3.59601228,190.27,190.26,99.64]
[1760896657918,3.59601228,190.27,190.26,98.92]
[1760896658118,3.59601228,190.27,190.26,99.64]
[1760896662643,5.25522079,190.29,190.26,99.64]
[1760896662847,5.25522079,190.29,190.27,0.72]
[1760896663051,3.59601228,190.28,190.27,0.72]
[1760896663342,8.85143415,190.28,190.26,98.92]
[1760896663727,3.59601228,190.27,190.26,98.92]
[1760896663920,4.27601228,190.27,190.26,61.8]
[1760896664119,4.27601228,190.27,190.24,104.3]
[1760896664120,22.88,190.25,190.24,61.8]
[1760896664323,27.15601228,190.25,190.22,99.0]
[1760896664552,3.59601228,190.23,190.22,99.0]
[1760896665547,8.85280668,190.23,190.22,99.0]
[1760896667434,26.47601228,190.23,190.22,99.68]
[1760896669778,31.73280668,190.23,190.22,99.68]
[1760896673831,26.47601228,190.23,190.22,99.68]
[1760896674450,5.25621286,190.26,190.22,99.68]
[1760896674631,3.59601228,190.25,190.23,0.68]
[1760896674834,3.59601228,190.25,190.24,37.08]
[1760896675238,3.59601228,190.25,190.24,98.88]
[1760896676155,3.59601228,190.25,190.24,99.56]
[1760896676548,5.25621286,190.26,190.24,99.56]
[1760896676549,8.85222514,190.26,190.24,99.56]
[1760896677339,22.88,190.26,190.24,99.56]
[1760896677546,26.47601228,190.26,190.24,99.56]
[1760896677752,3.59601228,190.25,190.24,98.88]
[1760896678054,4.27601228,190.25,190.24,61.8]
[1760896679155,22.88,190.26,190.24,61.8]
[1760896679356,26.47601228,190.26,190.24,62.48]
[1760896679539,26.47601228,190.26,190.25,0.68]
[1760896679953,26.47601228,190.26,190.25,62.48]
[1760896680458,27.15601228,190.26,190.25,61.8]
[1760896680634,26.47601228,190.26,190.25,61.8]
[1760896681036,31.7319778,190.26,190.25,61.8]
[1760896682057,26.47601228,190.26,190.25,61.8]
[1760896682360,26.47601228,190.26,190.25,62.48]
[1760896684362,2.74755599,190.29,190.25,62.48]
[1760896684657,3.59601228,190.28,190.26,37.76]
[1760896684853,3.59601228,190.28,190.27,0.68]
[1760896685454,8.85156388,190.28,190.27,0.68]
[1760896685655,3.59601228,190.28,190.27,0.68]
[1760896686049,3.59601228,190.28,190.26,37.08]
[1760896686253,3.59601228,190.27,190.26,37.08]
[1760896687146,8.85170156,190.27,190.26,37.08]
[1760896687350,8.85170156,190.27,190.26,37.76]
[1760896688158,8.85170156,190.27,190.26,37.08]
[1760896688366,8.85170156,190.27,190.26,37.76]
[1760896688965,8.85170156,190.27,190.26,99.56]
[1760896695672,8.85124196,190.29,190.26,99.56]
[1760896695865,8.85124196,190.29,190.27,0.7]
[1760896696169,8.85124196,190.29,190.28,37.06]
[1760896696364,8.85124196,190.29,190.28,37.76]
[1760896696874,5.25522968,190.29,190.28,37.76]
[1760896697057,8.85124196,190.29,190.28,37.76]
[1760896699576,5.25522968,190.29,190.28,37.76]
[1760896699779,8.85124196,190.29,190.28,37.76]
[1760896700479,8.85124196,190.29,190.28,99.56]
[1760896700965,5.25522968,190.29,190.28,99.56]
[1760896702483,8.85124196,190.29,190.28,99.56]
[1760896703567,5.25522968,190.29,190.28,99.56]
[1760896703977,8.85124196,190.29,190.28,99.56]
[1760896705684,5.25522968,190.29,190.28,99.56]
[1760896705861,8.85124196,190.29,190.28,99.56]
[1760896706692,7.55694645,190.29,190.28,99.56]
[1760896706876,5.25522968,190.29,190.28,99.56]
[1760896707073,7.55694645,190.29,190.28,99.56]
[1760896707373,2.30171677,190.29,190.28,99.56]
[1760896708382,30.43685366,190.29,190.28,99.56]
[1760896710081,30.43685366,190.29,190.28,99.54]
[1760896713568,2.30171677,190.29,190.28,99.54]
[1760896722093,36.01589723,190.32,190.28,99.54]
[1760896722094,28.13452906,190.32,190.28,99.54]
[1760896722300,2.30171677,190.29,190.28,98.84]
[1760896722892,2.30171677,190.29,190.28,99.54]
[1760896724901,7.55685366,190.29,190.28,99.54]
[1760896730903,2.30171677,190.29,190.28,99.54]
[1760896739912,2.30171677,190.33,190.28,102.4936963]
[1760896740112,2.30171677,190.33,190.29,0.66]
[1760896740290,15.79737237,190.38,190.3,39.28171677]
[1760896740488,2.30171677,190.32,190.31,0.66]
[1760896740699,2.30171677,190.32,190.25,33.75647521]
[1760896740700,2.30171677,190.32,190.27,0.66]
[1760896741001,2.30171677,190.28,190.26,64.75398604]
[1760896741507,21.05279268,190.34,190.27,0.66]
[1760896741714,2.30171677,190.28,190.27,0.66]
[1760896741915,2.30171677,190.28,190.24,0.66]
[1760896742092,2.30171677,190.28,190.25,0.66]
[1760896742415,2.30171677,190.26,190.25,37.64]
[1760896743509,2.30171677,190.26,190.25,0.66]
[1760896743708,2.30171677,190.26,190.23,60.15828323]
[1760896744015,0.72,190.28,190.24,36.98]
[1760896744513,0.72,190.27,190.24,59.49828323]
[1760896744825,5.97596552,190.26,190.22,0.1]
[1760896745016,2.30171677,190.23,190.22,0.1]
[1760896745526,2.30171677,190.23,190.22,0.76]
[1760896746219,2.30171677,190.23,190.22,6.01707076]
[1760896746716,2.30171677,190.25,190.22,6.01707076]
[1760896746896,2.30171677,190.25,190.23,37.64]
[1760896747096,2.30171677,190.25,190.24,0.66]
[1760896748926,2.30171677,190.25,190.23,36.98]
[1760896749102,2.30171677,190.25,190.23,37.64]
[1760896749303,2.30171677,190.24,190.23,37.64]
[1760896750311,2.30171677,190.25,190.23,37.64]
[1760896756226,2.30171677,190.25,190.23,201.43828323]
[1760896757007,2.30171677,190.25,190.24,0.68]
[1760896757206,2.30171677,190.27,190.24,60.17828323]
[1760896757525,2.30171677,190.27,190.25,37.64]
[1760896758098,2.97171677,190.27,190.25,96.45828323]
[1760896759120,8.2274752,190.27,190.25,96.45828323]
[1760896759329,0.67,190.26,190.25,96.45828323]
[1760896762539,7.5574752,190.27,190.25,96.45828323]
[1760896762914,8.2274752,190.27,190.25,96.45828323]
[1760896765823,7.5574752,190.27,190.25,96.45828323]
[1760896766728,3.59798563,190.26,190.25,96.45828323]
[1760896767633,3.59798563,190.27,190.25,97.13828323]
[1760896767812,3.59798563,190.27,190.26,0.68]
[1760896768129,3.59798563,190.27,190.26,60.17828323]
[1760896776154,9.52367491,190.27,190.22,0.1]
[1760896776346,3.59798563,190.23,190.22,59.59828323]
[1760896776646,4.26798563,190.23,190.22,59.59828323]
[1760896777420,8.85478003,190.23,190.22,59.59828323]
[1760896777621,3.59798563,190.23,190.22,97.21828323]
[1760896778022,3.59798563,190.26,190.22,97.21828323]
[1760896778254,3.59798563,190.26,190.23,0.68]
[1760896778544,22.88,190.25,190.24,36.94]
[1760896779870,26.47798563,190.25,190.24,36.94]
[1760896785244,26.47798563,190.25,190.24,37.61]
[1760896786850,31.73422741,190.25,190.24,36.94]
[1760896787037,31.73422741,190.25,190.24,37.61]
[1760896788469,31.73422741,190.25,190.24,97.10828323]
[1760896793667,26.47798563,190.25,190.24,97.10828323]
[1760896795262,5.25486074,190.3,190.24,97.10828323]
[1760896795575,3.59798563,190.27,190.25,0.67]
[1760896795739,3.59798563,190.27,190.26,36.92]
[1760896796059,3.59798563,190.28,190.26,97.08828323]
[1760896796256,3.59798563,190.29,190.27,0.67]
[1760896796563,28.13486074,190.3,190.28,36.92]
[1760896796871,5.25486074,190.3,190.28,97.08828323]
[1760896797059,22.88,190.29,190.28,97.08828323]
[1760896797378,28.81513689,190.29,190.28,59.49828323]
[1760896797769,32.41312252,190.29,190.28,59.49828323]
[1760896799650,31.73312252,190.29,190.28,59.49828323]
[1760896799976,2.7470725,190.32,190.28,60.16828323]
[1760896800141,5.25184444,190.41,190.3,3.59798563]
[1760896800348,3.59798563,190.36,190.31,37.59]
[1760896800549,3.59798563,190.33,190.32,0.67]
[1760896801764,2.74590891,190.4,190.32,0.67]
[1760896801953,0.68,190.46,190.36,3.59798563]
[1760896802156,3.59798563,190.43,190.37,41.16798563]
[1760896802459,3.59798563,190.43,190.38,0.67]
[1760896802644,22.88,190.45,190.39,36.9]
[1760896802844,3.59798563,190.44,190.4,0.67]
[1760896803064,3.59798563,190.44,190.41,36.9]
[1760896803270,3.59798563,190.44,190.42,0.67]
[1760896803575,3.59798563,190.44,190.43,0.67]
[1760896803748,5.25069146,190.46,190.43,0.67]
[1760896803952,3.59798563,190.46,190.43,0.67]
[1760896804152,3.59798563,190.46,190.44,37.57]
[1760896804379,3.59798563,190.47,190.45,0.67]
[1760896804542,2.7447737,190.48,190.46,0.67]
[1760896804858,0.2,190.49,190.47,37.57]
[1760896805543,3.59798563,190.48,190.47,36.9]
[1760896806342,5.44962621,190.49,190.47,36.9]
[1760896806666,3.59798563,190.48,190.47,36.9]
[1760896806854,5.44962621,190.49,190.47,36.9]
[1760896807165,0.2,190.49,190.48,0.67]
[1760896808546,0.2,190.49,190.47,36.9]
[1760896808778,0.2,190.49,190.47,37.57]
[1760896808949,0.2,190.49,190.48,0.67]
[1760896813858,0.2,190.49,190.47,98.7]
[1760896814059,4.46798563,190.49,190.47,98.7]
[1760896814274,0.2,190.49,190.47,98.7]
[1760896814476,3.79798563,190.49,190.47,98.7]
[1760896814673,0.2,190.49,190.47,99.42]
[1760896814874,4.26798563,190.48,190.45,61.8]
[1760896815062,3.59798563,190.46,190.41,0.72]
[1760896815265,0.67,190.46,190.43,36.86]
[1760896815577,0.67,190.46,190.4,61.8]
[1760896815578,3.59798563,190.44,190.4,36.86]
[1760896815786,3.59798563,190.41,190.34,0.72]
[1760896815961,3.59798563,190.38,190.35,36.86]
[1760896816162,3.59798563,190.38,190.36,0.72]
[1760896816466,3.59798563,190.39,190.37,0.72]
[1760896816666,0.67,190.44,190.38,36.86]
[1760896816887,3.59798563,190.44,190.39,0.72]
[1760896817185,3.59798563,190.43,190.39,0.72]
[1760896817953,3.59798563,190.41,190.38,36.86]
[1760896818185,3.59798563,190.39,190.38,36.86]
[1760896819892,3.59798563,190.39,190.37,36.86]
[1760896820079,3.59798563,190.38,190.37,36.86]
[1760896820966,3.59798563,190.4,190.37,37.58]
[1760896821159,26.47798563,190.41,190.38,0.72]
[1760896821359,5.25017063,190.47,190.39,0.72]
[1760896821561,3.59798563,190.44,190.39,99.38]
[1760896821764,3.59798563,190.44,190.4,0.72]
[1760896822077,3.59798563,190.44,190.41,0.72]
[1760896823486,3.59798563,190.44,190.39,99.38]
[1760896823689,3.59798563,190.44,190.39,98.66]
[1760896823993,3.59798563,190.4,190.35,61.8]
[1760896824185,3.59798563,190.38,190.33,0.72]
[1760896824385,3.59798563,190.38,190.34,0.72]
[1760896824691,3.59798563,190.37,190.34,0.72]
[1760896825491,22.88,190.35,190.34,0.72]
[1760896826288,28.92575903,190.41,190.34,9.57169884]
[1760896826289,3.59798563,190.4,190.34,9.57169884]
[1760896826493,3.59798563,190.38,190.35,0.72]
[1760896826788,3.59798563,190.38,190.36,37.58]
[1760896826976,3.59798563,190.38,190.37,0.72]
[1760896827178,3.59798563,190.39,190.37,0.72]
[1760896827489,3.59798563,190.38,190.36,36.86]
[1760896827691,3.59798563,190.38,190.36,37.58]
[1760896828265,3.59798563,190.37,190.36,37.58]
[1760896828682,2.29923114,190.37,190.36,37.58]
[1760896829596,2.29923114,190.37,190.36,99.38]
[1760896830594,2.29923114,190.37,190.36,98.66]
[1760896832297,2.29923114,190.37,190.36,99.38]
[1760896833276,5.25210519,190.4,190.36,99.38]
[1760896833471,2.29923114,190.37,190.36,99.38]
[1760896836489,2.29923114,190.38,190.36,104.63319303]
[1760896836793,2.29923114,190.38,190.37,0.72]
[1760896837001,2.29923114,190.38,190.36,98.66]
[1760896837203,2.29923114,190.37,190.36,98.66]
[1760896838595,2.29923114,190.37,190.36,99.38]
[1760896840790,5.25183911,190.41,190.36,99.38]
[1760896841099,2.29923114,190.38,190.37,0.72]
[1760896841299,2.29923114,190.38,190.37,62.52]
[1760896841688,2.29923114,190.39,190.37,62.52]
[1760896842097,5.25183911,190.41,190.37,62.52]
[1760896842298,2.29923114,190.39,190.38,36.86]
[1760896842604,2.29923114,190.39,190.38,98.66]
[1760896842791,5.25183911,190.41,190.38,99.38]
[1760896842992,2.29923114,190.39,190.38,99.38]
[1760896844087,2.29923114,190.39,190.38,98.66]
[1760896849713,2.29923114,190.39,190.38,99.36]
[1760896854617,25.17923114,190.39,190.38,98.66]
[1760896855515,5.25157974,190.42,190.38,99.36]
[1760896855706,2.29923114,190.4,190.39,0.7]
[1760896856015,2.29923114,190.41,190.38,98.66]
[1760896856215,2.29923114,190.41,190.38,99.36]
[1760896857519,22.88,190.38,190.32,0.7]
[1760896857817,2.29923114,190.35,190.32,37.56]
[1760896857991,2.29923114,190.36,190.33,0.7]
[1760896858198,2.29923114,190.36,190.32,36.86]
[1760896858422,2.29923114,190.37,190.33,0.7]
[1760896859411,2.29923114,190.37,190.34,0.7]
[1760896860121,25.2,190.61,190.36,2.29923114]
[1760896860300,25.2,190.61,190.35,36.84]
[1760896860301,2.29923114,190.48,190.42,2.29923114]
[1760896860495,2.29923114,190.46,190.43,37.74]
[1760896860918,6.09967706,190.49,190.44,0.7]
[1760896861124,2.29923114,190.46,190.43,37.04]
[1760896861312,2.29923114,190.46,190.43,37.74]
[1760896862025,2.29923114,190.46,190.43,42.99115253]
[1760896862205,0.65,190.48,190.43,42.29115253]
[1760896862526,23.53,190.48,190.44,0.7]
[1760896865521,23.53,190.48,190.44,5.95094514]
[1760896866625,23.53,190.48,190.44,5.25094514]
[1760896866830,0.65,190.47,190.44,5.25094514]
[1760896867127,22.88,190.48,190.44,5.25094514]
[1760896867444,23.53,190.47,190.43,98.84]
[1760896867638,2.29923114,190.44,190.39,61.8]
[1760896867830,2.29923114,190.42,190.35,0.7]
[1760896868138,2.94923114,190.42,190.36,36.98]
[1760896868310,0.65,190.41,190.36,36.98]
[1760896868505,0.65,190.41,190.36,37.68]
[1760896869003,0.65,190.41,190.36,42.93314896]
[1760896869231,2.94923114,190.41,190.36,42.93314896]
[1760896870730,0.65,190.4,190.36,37.68]
[1760896872027,7.55108564,190.41,190.36,36.98]
[1760896872224,2.95923114,190.39,190.35,67.05344921]
[1760896872426,2.95923114,190.39,190.35,67.74344921]
[1760896872621,2.95923114,190.39,190.35,0.69]
[1760896872933,2.95923114,190.39,190.35,62.49]
[1760896873625,8.21167276,190.39,190.35,62.49]
[1760896875322,2.29923114,190.38,190.35,61.8]
[1760896875638,25.17923114,190.36,190.35,61.8]
[1760896875940,22.88,190.36,190.35,62.5]
[1760896876141,22.88,190.36,190.35,61.8]
[1760896877025,25.88923114,190.36,190.35,61.8]
[1760896877228,23.59,190.36,190.35,61.8]
[1760896877457,0.71,190.36,190.35,61.8]
[1760896877814,5.96320445,190.36,190.35,61.8]
[1760896878822,5.25320445,190.36,190.35,61.8]
[1760896879745,30.43214401,190.38,190.35,61.8]
[1760896880039,22.88,190.37,190.35,61.8]
[1760896881062,22.88,190.38,190.36,0.7]
[1760896881339,7.55081881,190.42,190.36,0.7]
[1760896881529,22.88,190.39,190.36,62.5]
[1760896881729,22.88,190.39,190.37,0.7]
[1760896881941,22.88,190.39,190.36,98.74]
[1760896882147,22.88,190.39,190.37,0.7]
[1760896882465,2.29923114,190.45,190.38,2.99923114]
[1760896882616,2.29923114,190.45,190.39,0.7]
[1760896882821,22.88,190.44,190.39,99.44]
[1760896883041,15.42524961,190.47,190.4,2.99923114]
[1760896883240,15.42524961,190.47,190.41,0.7]
[1760896883241,22.88,190.44,190.41,0.7]
[1760896883631,22.88,190.44,190.42,0.7]
[1760896884031,22.88,190.44,190.4,2.29923114]
[1760896884232,22.88,190.44,190.43,0.7]
[1760896884436,22.88,190.43,190.42,36.94]
[1760896884649,22.88,190.43,190.42,37.64]
[1760896885543,28.13100113,190.44,190.42,36.94]
[1760896885753,22.88,190.44,190.42,36.94]
[1760896886625,22.88,190.43,190.42,37.64]
[1760896887148,15.42524961,190.47,190.42,45.19072779]
[1760896887149,22.88,190.47,190.42,45.19072779]
[1760896887326,22.88,190.47,190.43,2.99923114]
[1760896887647,22.88,190.45,190.44,0.7]
[1760896888163,0.2,190.49,190.44,64.79923114]
[1760896888448,0.2,190.49,190.45,37.62]
[1760896888649,0.2,190.49,190.46,2.29923114]
[1760896888851,23.08,190.49,190.47,4.28718719]
[1760896889149,0.2,190.49,190.48,37.62]
[1760896889355,0.2,190.49,190.48,41.20718719]
[1760896890054,0.2,190.49,190.48,46.45708219]
[1760896892440,0.2,190.49,190.48,37.6]
[1760896894156,0.2,190.49,190.48,99.4]
[1760896897544,0.2,190.49,190.48,62.5]
[1760896897934,0.2,190.49,190.48,99.36]
[1760896898757,0.2,190.49,190.48,62.5]
[1760896898937,0.2,190.49,190.48,99.36]
[1760896900355,0.2,190.49,190.48,102.94718719]
[1760896902158,0.2,190.49,190.44,61.8]
[1760896902159,6.1596194,190.49,190.44,61.8]
[1760896902350,6.1596194,190.49,190.45,36.84]
[1760896902529,0.91,190.49,190.45,36.84]
[1760896902734,0.2,190.49,190.46,0.7]
[1760896902950,0.2,190.49,190.47,36.86]
[1760896903855,0.2,190.49,190.48,0.7]
[1760896904056,0.2,190.49,190.48,62.5]
[1760896904264,0.2,190.61,190.48,7.87437438]
[1760896904470,0.2,190.61,190.53,22.88]
[1760896904637,0.2,190.61,190.55,3.58718719]
[1760896905140,0.2,190.61,190.54,37.48482418]
[1760896905343,0.2,190.61,190.55,3.58718719]
[1760896905750,0.2,190.61,190.55,8.8351536]
[1760896905954,0.2,190.61,190.58,22.88]
[1760896906173,1e-08,190.59,190.58,70.71647521]
[1760896906339,1e-08,190.59,190.58,41.45556362]
[1760896906537,1e-08,190.59,190.58,71.28118924]
[1760896906760,1e-08,190.59,190.58,78.45556362]
[1760896907057,1e-08,190.59,190.58,74.86837643]
[1760896907362,0.71000001,190.59,190.58,37.0]
[1760896908543,0.71000001,190.59,190.53,3.58718719]
[1760896908770,1e-08,190.59,190.52,28.38]
[1760896908944,0.71,190.58,190.54,37.02]
[1760896909145,0.71,190.57,190.55,37.02]
[1760896909347,0.71,190.56,190.55,37.02]
[1760896909650,0.71,190.58,190.55,37.02]
[1760896909848,22.88000001,190.59,190.55,37.02]
[1760896910048,0.71,190.58,190.55,37.02]
[1760896910244,0.71,190.57,190.55,37.02]
[1760896910465,1e-08,190.59,190.55,37.02]